bitfinex/quotes_BTCUSD_20250505
["timestamp","ask_amount","ask_price","bid_price","bid_amount"]
[1746470241387,0.01662405,95006.0,95005.0,0.27824972]
[1746470241593,0.001,95009.0,95008.0,0.24210858]
[1746470242004,0.001,95009.0,95008.0,0.2498024]
[1746470242347,0.01562837,95009.0,95008.0,0.27923812]
[1746470242688,0.01562837,95009.0,95008.0,0.28423812]
[1746470243291,0.01562837,95009.0,95008.0,0.28923812]
[1746470243521,0.0141844,95017.0,95008.0,0.28923812]
[1746470243522,0.0141844,95017.0,95016.0,0.2410573]
[1746470243723,0.0141844,95017.0,95016.0,0.2485289]
[1746470244142,0.0141844,95017.0,95016.0,0.26815601]
[1746470244341,0.001,95029.0,95028.0,0.21046428]
[1746470244567,0.001,95029.0,95028.0,0.21256842]
[1746470244759,0.001,95029.0,95028.0,0.25157421]
[1746470244960,0.001,95029.0,95028.0,0.24947007]
[1746470245721,0.341,95049.0,95048.0,0.21041999]
[1746470245722,0.001,95049.0,95048.0,0.21041999]
[1746470246055,0.00145271,95049.0,95048.0,0.2634533]
[1746470246243,0.00107,95060.0,95059.0,0.2093625]
[1746470246593,0.0012057,95060.0,95059.0,0.25069155]
[1746470246797,0.0012057,95060.0,95059.0,0.24858818]
[1746470247203,0.0012057,95060.0,95059.0,0.56312903]
[1746470248191,0.0012057,95060.0,95059.0,0.56612903]
[1746470248618,0.001,95089.0,95088.0,0.21033148]
[1746470248825,0.00037226,95100.0,95099.0,0.22560715]
[1746470249026,0.00037226,95100.0,95091.0,0.01051624]
[1746470249027,0.01051579,95095.0,95088.0,0.00669321]
[1746470249244,0.00050791,95100.0,95097.0,0.01051557]
[1746470249456,0.00050791,95100.0,95098.0,0.21030807]
[1746470249653,0.00050791,95100.0,95098.0,0.21241095]
[1746470249857,0.0170017,95100.0,95098.0,0.21241095]
[1746470250358,0.0170017,95100.0,95098.0,0.22881095]
[1746470250582,0.0170017,95100.0,95098.0,0.21030807]
[1746470250782,0.0170017,95100.0,95099.0,0.0164]
[1746470251408,0.0170017,95100.0,95098.0,0.21030807]
[1746470251920,0.0170017,95100.0,95099.0,0.21030715]
[1746470252365,0.0170017,95100.0,95099.0,0.21130715]
[1746470253179,0.0170017,95100.0,95099.0,0.001]
[1746470253380,0.0164,95098.0,95095.0,0.21031485]
[1746470253488,0.0164,95098.0,95096.0,0.01051568]
[1746470253701,0.0164,95098.0,95096.0,0.22082857]
[1746470254580,0.0164,95098.0,95095.0,0.01051579]
[1746470254975,0.0164,95098.0,95096.0,0.21031378]
[1746470255184,0.0170017,95100.0,95099.0,0.21030715]
[1746470255567,0.0170017,95100.0,95099.0,0.21683981]
[1746470258437,0.0170017,95100.0,95099.0,0.21783981]
[1746470259982,0.31564576,95109.0,95108.0,0.21028725]
[1746470260358,0.0141844,95111.0,95110.0,0.21028283]
[1746470260762,0.0306774,95111.0,95110.0,0.21673682]
[1746470262219,0.0306774,95111.0,95110.0,0.23303682]
[1746470264768,0.00773356,95121.0,95120.0,0.21026072]
[1746470265091,0.02422408,95121.0,95120.0,0.21026072]
[1746470265424,0.02422408,95121.0,95120.0,0.31963933]
[1746470265629,0.02422408,95121.0,95120.0,0.00607077]
[1746470265837,0.59018259,95121.0,95120.0,0.00607077]
[1746470266080,0.59018259,95121.0,95110.0,0.003]
[1746470266081,0.016,95111.0,95110.0,0.003]
[1746470266287,0.56628061,95111.0,95110.0,0.004]
[1746470266464,0.356,95111.0,95110.0,0.001]
[1746470266762,0.356,95111.0,95109.0,0.21028359]
[1746470266763,0.35649207,95111.0,95109.0,0.21028359]
[1746470267164,0.35649207,95111.0,95110.0,0.00495922]
[1746470267367,0.34,95111.0,95110.0,0.00495922]
[1746470267564,0.34,95111.0,95110.0,0.00392654]
[1746470269384,0.356,95111.0,95110.0,0.00392654]
[1746470269839,0.34,95111.0,95110.0,0.00392654]
[1746470269974,0.00773356,95121.0,95120.0,0.21026072]
[1746470270356,0.00773356,95121.0,95120.0,0.21508945]
[1746470270638,0.02422425,95121.0,95120.0,0.21508945]
[1746470270923,0.03952425,95121.0,95120.0,0.21508945]
[1746470271367,0.03956944,95121.0,95120.0,0.21508945]
[1746470271985,0.02426944,95121.0,95120.0,0.21508945]
[1746470275022,0.01240138,95128.0,95127.0,0.21024525]
[1746470275395,0.01240138,95128.0,95127.0,0.21506247]
[1746470275599,0.02889186,95128.0,95127.0,0.21506247]
[1746470275768,0.04529186,95128.0,95127.0,0.21506247]
[1746470276583,0.02880138,95128.0,95127.0,0.21506247]
[1746470278614,0.01240138,95128.0,95127.0,0.21506247]
[1746470279250,0.01240138,95128.0,95127.0,0.21637412]
[1746470279806,0.02889188,95128.0,95127.0,0.21637412]
[1746470282817,0.25453492,95128.0,95127.0,0.00612887]
[1746470282984,0.38429188,95128.0,95127.0,0.21637412]
[1746470283186,0.34,95127.0,95121.0,0.21025737]
[1746470283365,0.34,95127.0,95126.0,0.21024746]
[1746470283366,0.3554,95127.0,95126.0,0.21024746]
[1746470283790,0.348139,95127.0,95126.0,0.21024746]
[1746470284312,0.0154,95127.0,95126.0,0.21024746]
[1746470285524,0.0154,95127.0,95126.0,0.21626282]
[1746470286602,0.01135165,95128.0,95127.0,0.21024525]
[1746470287001,0.001,95129.0,95128.0,0.21024304]
[1746470287423,0.001,95129.0,95128.0,0.21625346]
[1746470289548,0.0174,95129.0,95128.0,0.21625346]
[1746470289863,0.0416678,95129.0,95128.0,0.00601042]
[1746470290019,0.3973678,95129.0,95128.0,0.00601042]
[1746470290232,0.34,95128.0,95121.0,4.519e-05]
[1746470290393,0.34,95128.0,95127.0,0.21024525]
[1746470290593,0.3566,95128.0,95127.0,0.21024525]
[1746470290787,0.3566,95128.0,95127.0,0.21625814]
[1746470290990,0.31424829,95128.0,95127.0,0.21625814]
[1746470291428,0.0166,95128.0,95127.0,0.21625814]
[1746470292167,0.0166,95128.0,95127.0,0.26322161]
[1746470293295,0.3566,95128.0,95127.0,0.26322161]
[1746470294444,0.0166,95128.0,95127.0,0.26322161]
[1746470294670,0.8566,95128.0,95127.0,0.26322161]
[1746470294940,0.84,95128.0,95127.0,0.26322161]
[1746470295478,0.8555,95128.0,95127.0,0.05297636]
[1746470295886,0.8708,95128.0,95127.0,0.05297636]
[1746470296047,0.8708,95128.0,95127.0,0.04696347]
[1746470297772,0.89053655,95128.0,95127.0,0.04696347]
[1746470298860,0.01051259,95124.0,95121.0,4.519e-05]
[1746470299007,0.34,95122.0,95121.0,4.519e-05]
[1746470299216,0.3708,95122.0,95121.0,4.519e-05]
[1746470300360,0.3555,95122.0,95121.0,4.519e-05]
[1746470301263,0.8555,95122.0,95121.0,4.519e-05]
[1746470302698,1.5528,95122.0,95121.0,4.519e-05]
[1746470302900,1.568,95122.0,95121.0,4.519e-05]
[1746470303085,1.5528,95122.0,95121.0,4.519e-05]
[1746470303890,1.5548,95122.0,95121.0,0.00634602]
[1746470304103,1.5528,95122.0,95121.0,4.519e-05]
[1746470304305,1.5538,95122.0,95121.0,4.519e-05]
[1746470304689,1.5538,95122.0,95121.0,0.2103037]
[1746470304690,1.5383,95122.0,95121.0,0.2103037]
[1746470304896,1.5383,95122.0,95121.0,0.21660453]
[1746470305533,1.1983,95122.0,95121.0,0.24930453]
[1746470306390,0.6983,95122.0,95121.0,0.23280453]
[1746470306780,0.6983,95122.0,95121.0,0.21660453]
[1746470307089,0.6983,95122.0,95121.0,0.00634602]
[1746470307287,0.6973,95122.0,95121.0,0.00634602]
[1746470307422,0.34,95126.0,95121.0,0.01885894]
[1746470307623,0.56076691,95124.0,95121.0,0.00834602]
[1746470307824,0.34,95122.0,95121.0,0.00834602]
[1746470308023,0.21025226,95124.0,95121.0,0.00304519]
[1746470308233,0.34,95122.0,95121.0,0.00304519]
[1746470308432,0.34,95122.0,95121.0,0.00204519]
[1746470308637,0.35649159,95122.0,95121.0,0.00618619]
[1746470308840,0.35649159,95122.0,95121.0,4.519e-05]
[1746470309057,0.35649159,95122.0,95121.0,0.00618619]
[1746470309253,0.35649159,95122.0,95121.0,4.519e-05]
[1746470309482,0.37259159,95122.0,95121.0,4.519e-05]
[1746470309696,1.06989159,95122.0,95121.0,0.00104519]
[1746470309934,1.08609159,95122.0,95121.0,0.00104519]
[1746470310126,1.08609159,95122.0,95121.0,4.519e-05]
[1746470310319,1.08609159,95122.0,95121.0,0.00104519]
[1746470310683,1.58609159,95122.0,95121.0,0.00104519]
[1746470311096,1.58809159,95122.0,95121.0,0.00104519]
[1746470311286,1.57189159,95122.0,95121.0,0.00104519]
[1746470311864,1.57189159,95122.0,95121.0,4.519e-05]
[1746470312103,1.57389159,95122.0,95121.0,0.00633599]
[1746470312304,1.57389159,95122.0,95121.0,4.519e-05]
[1746470312974,1.58979159,95122.0,95121.0,4.519e-05]
[1746470313589,0.86049159,95122.0,95121.0,4.519e-05]
[1746470314234,0.86049159,95122.0,95121.0,0.00632462]
[1746470315411,0.85849159,95122.0,95121.0,0.00632462]
[1746470316387,0.85649159,95122.0,95121.0,0.00632462]
[1746470318357,0.85649159,95122.0,95121.0,0.21658313]
[1746470319895,0.85649159,95122.0,95121.0,0.23268313]
[1746470320683,0.01649159,95122.0,95121.0,0.23268313]
[1746470324597,0.01649159,95122.0,95121.0,0.21658313]
[1746470327690,0.01649159,95122.0,95079.0,0.07976199]
[1746470327691,0.21032484,95091.0,95079.0,0.07976199]
[1746470327922,0.21034917,95080.0,95079.0,0.07976199]
[1746470328116,0.55034917,95080.0,95079.0,0.07976199]
[1746470328354,0.5779149,95080.0,95079.0,0.07989764]
[1746470328767,0.55817998,95080.0,95079.0,0.07989764]
[1746470329261,0.55817998,95080.0,95079.0,0.00013565]
[1746470330044,0.56017998,95080.0,95079.0,0.00013565]
[1746470330245,0.57667984,95080.0,95079.0,0.00013565]
[1746470330833,1.07767984,95080.0,95079.0,0.00013565]
[1746470331034,1.09222069,95080.0,95079.0,0.00013565]
[1746470331486,0.55037573,95068.0,95067.0,0.07289764]
[1746470332252,0.56687733,95068.0,95067.0,0.07289764]
[1746470332457,1.06687733,95068.0,95067.0,0.07289764]
[1746470332787,1.06687733,95068.0,95067.0,0.07589764]
[1746470333013,1.06687733,95068.0,95067.0,0.003]
[1746470333922,0.54648838,95068.0,95067.0,0.0337]
[1746470334256,0.5165016,95068.0,95067.0,0.24407794]
[1746470334975,0.0165016,95068.0,95067.0,0.24407794]
[1746470336725,0.02941443,95077.0,95075.0,0.21036008]
[1746470337061,0.01051756,95079.0,95076.0,0.22087514]
[1746470337463,0.35051756,95079.0,95076.0,0.22087514]
[1746470337626,0.22087201,95078.0,95075.0,0.22087809]
[1746470337844,0.22087201,95078.0,95075.0,0.01051801]
[1746470338054,0.01051779,95077.0,95073.0,0.21036296]
[1746470338253,0.01051779,95077.0,95067.0,0.015]
[1746470338254,0.01051956,95061.0,95056.0,0.01052011]
[1746470338467,0.34,95074.0,95056.0,0.01052011]
[1746470338468,0.41025529,95066.0,95059.0,0.01051978]
[1746470338669,0.41025529,95066.0,95062.0,0.22090775]
[1746470338873,0.01051922,95064.0,95060.0,0.01051967]
[1746470339046,0.2209021,95065.0,95060.0,0.22091207]
[1746470339248,0.39973629,95066.0,95060.0,0.22091207]
[1746470339561,0.22090147,95065.0,95062.0,0.01051945]
[1746470339760,0.22090147,95065.0,95062.0,0.001]
[1746470339761,0.23740478,95064.0,95062.0,0.001]
[1746470340055,0.02701978,95064.0,95061.0,0.22091032]
[1746470340435,0.01650056,95064.0,95062.0,0.21038778]
[1746470341447,0.01650056,95064.0,95062.0,0.21238778]
[1746470341846,0.01650056,95064.0,95062.0,0.21238707]
[1746470342046,0.01650056,95064.0,95062.0,0.21338707]
[1746470342274,0.01650056,95064.0,95062.0,0.003]
[1746470343367,0.22688594,95064.0,95062.0,0.003]
[1746470343935,0.01650056,95064.0,95062.0,0.21338834]
[1746470344343,0.01044056,95064.0,95063.0,0.21038679]
[1746470345208,0.21040228,95056.0,95036.0,0.01052232]
[1746470345523,0.22092228,95057.0,95032.0,0.0323]
[1746470345524,0.55041114,95052.0,95034.0,0.01052254]
[1746470345884,0.55041114,95052.0,95038.0,0.0105221]
[1746470346087,0.55041114,95052.0,95040.0,0.01052188]
[1746470346421,0.55041114,95052.0,95042.0,0.01052166]
[1746470346647,0.55141114,95052.0,95043.0,0.21043003]
[1746470346852,0.55141114,95052.0,95044.0,0.01052144]
[1746470347092,1.05141114,95052.0,95044.0,0.01052144]
[1746470347239,1.05141114,95052.0,95043.0,0.21043003]
[1746470347437,1.05141114,95052.0,95044.0,0.21042688]
[1746470347641,1.05141114,95052.0,95047.0,0.01052111]
[1746470348198,1.05141114,95052.0,95046.0,0.01052122]
[1746470348544,1.05141114,95052.0,95047.0,0.01052111]
[1746470348885,1.06791489,95052.0,95047.0,0.01052111]
[1746470349063,1.06791489,95052.0,95046.0,0.22094473]
[1746470349264,1.06791489,95052.0,95044.0,0.22094891]
[1746470349463,1.06791489,95052.0,95045.0,0.01052133]
[1746470350197,1.06791489,95052.0,95044.0,0.01052144]
[1746470350377,1.06791489,95052.0,95045.0,0.01052133]
[1746470350576,1.06791489,95052.0,95044.0,0.01052144]
[1746470350761,1.06791489,95052.0,95043.0,0.220952]
[1746470350961,1.15647691,95052.0,95010.0,0.42100787]
[1746470351165,1.15647691,95052.0,95037.0,0.01052221]
[1746470351360,1.06791489,95052.0,95042.0,0.01052166]
[1746470351547,1.06791489,95052.0,95044.0,0.01052144]
[1746470351749,1.06791489,95052.0,95045.0,0.01052133]
[1746470352001,1.06791489,95052.0,95044.0,0.01052144]
[1746470352190,1.06791489,95052.0,95045.0,0.01052133]
[1746470353674,1.06791489,95052.0,95043.0,0.21043065]
[1746470353849,1.06791489,95052.0,95044.0,0.01052144]
[1746470354760,1.06791489,95052.0,95043.0,0.21043065]
[1746470354902,1.06791489,95052.0,95042.0,0.01052166]
[1746470355370,1.06791489,95052.0,95043.0,0.01052155]
[1746470355909,1.06791489,95052.0,95018.0,0.01052432]
[1746470355910,0.55045542,95032.0,95018.0,0.01052432]
[1746470356057,0.55045542,95032.0,95021.0,0.21047961]
[1746470356278,0.55045542,95032.0,95020.0,0.0105241]
[1746470356279,0.55045542,95032.0,95031.0,0.00145271]
[1746470357233,1.05045542,95032.0,95031.0,0.00145271]
[1746470358113,0.84,95032.0,95031.0,0.00145271]
[1746470358346,0.84,95032.0,95031.0,0.01765271]
[1746470358579,0.34,95032.0,95031.0,0.22911035]
[1746470359014,0.34,95032.0,95031.0,0.23111035]
[1746470359481,0.35650625,95032.0,95031.0,0.23111035]
[1746470360997,0.32353639,95032.0,95031.0,0.23111035]
[1746470361193,0.01650625,95032.0,95031.0,0.24671035]
[1746470363333,0.01650625,95032.0,95031.0,0.23111035]
[1746470366114,0.01650625,95032.0,95031.0,0.24621035]
[1746470366640,0.01650625,95032.0,95031.0,0.23111035]
[1746470366879,0.0105221,95038.0,95034.0,0.21045044]
[1746470367256,0.21044439,95037.0,95035.0,0.2104486]
[1746470367495,0.2104478,95036.0,95033.0,0.22097561]
[1746470367679,0.2209666,95037.0,95032.0,0.21045536]
[1746470367941,0.2209666,95037.0,95033.0,0.21045321]
[1746470368153,0.01052232,95036.0,95031.0,0.22443323]
[1746470368343,0.2209666,95037.0,95034.0,0.01052254]
[1746470368486,0.01052221,95037.0,95034.0,0.01052254]
[1746470368685,0.21045542,95032.0,95031.0,0.00145271]
[1746470368870,0.55045542,95032.0,95031.0,0.00145271]
[1746470369075,1.05045542,95032.0,95031.0,0.00145271]
[1746470369673,1.06696183,95032.0,95031.0,0.00145271]
[1746470370171,1.06696183,95032.0,95031.0,0.00345271]
[1746470370581,0.85650641,95032.0,95031.0,0.00345271]
[1746470370912,0.85650641,95032.0,95031.0,0.21391035]
[1746470371383,0.85650641,95032.0,95031.0,0.21491035]
[1746470371609,0.85650641,95032.0,95031.0,0.00445271]
[1746470371809,1.06696183,95032.0,95031.0,0.00445271]
[1746470372395,1.08667861,95032.0,95031.0,0.00445271]
[1746470372971,0.87622319,95032.0,95031.0,0.00445271]
[1746470373316,1.08667861,95032.0,95031.0,0.00445271]
[1746470376120,0.87622319,95032.0,95031.0,0.00445271]
[1746470376316,1.08667861,95032.0,95031.0,0.00445271]
[1746470376626,0.85971678,95032.0,95031.0,0.00445271]
[1746470378290,0.85971678,95032.0,95031.0,0.21491035]
[1746470379375,0.51971678,95032.0,95031.0,0.21491035]
[1746470379879,0.87622298,95032.0,95031.0,0.21491035]
[1746470382882,0.53622298,95032.0,95031.0,0.21491035]
[1746470383072,0.87622298,95032.0,95031.0,0.21491035]
[1746470384212,0.8565062,95032.0,95031.0,0.21491035]
[1746470386800,0.84,95032.0,95031.0,0.21491035]
[1746470388678,0.84,95032.0,95031.0,0.21345764]
[1746470389759,0.85650612,95032.0,95031.0,0.21345764]
[1746470392652,0.85650612,95032.0,95031.0,0.003]
[1746470392864,0.85650612,95032.0,95031.0,0.21345764]
[1746470393076,0.87626523,95032.0,95031.0,0.21345764]
[1746470394961,0.87631173,95032.0,95031.0,0.21345764]
[1746470395755,0.87631173,95032.0,95031.0,0.21143035]
[1746470396259,0.85980561,95032.0,95031.0,0.21143035]
[1746470396644,0.85980561,95032.0,95031.0,0.00097271]
[1746470396848,0.85980561,95032.0,95031.0,0.21143035]
[1746470399306,0.87631173,95032.0,95031.0,0.21143035]
[1746470400750,0.53631173,95032.0,95031.0,0.22643035]
[1746470400918,0.53631173,95032.0,95031.0,0.24243035]
[1746470401692,0.03631173,95032.0,95031.0,0.24243035]
[1746470402218,0.01655262,95032.0,95031.0,0.24243035]
[1746470402823,0.01655262,95032.0,95031.0,0.23543035]
[1746470407242,4.65e-05,95032.0,95031.0,0.23543035]
[1746470409912,4.65e-05,95032.0,95031.0,0.22843035]
[1746470410395,0.01655133,95032.0,95031.0,0.22843035]
[1746470413536,4.65e-05,95032.0,95031.0,0.22843035]
[1746470414545,4.65e-05,95032.0,95031.0,0.21343035]
[1746470415734,4.65e-05,95032.0,95031.0,0.22903035]
[1746470417030,4.65e-05,95032.0,95031.0,0.22203035]
[1746470421623,0.01655128,95032.0,95031.0,0.22203035]
[1746470421823,0.01655128,95032.0,95031.0,0.20643035]
[1746470424007,0.01655128,95032.0,95031.0,0.19943035]
[1746470427350,4.65e-05,95032.0,95031.0,0.19943035]
[1746470429234,0.34,95049.0,95046.0,0.21042356]
[1746470429235,0.0166,95048.0,95046.0,0.21042356]
[1746470429441,0.3295265,95049.0,95047.0,0.21042221]
[1746470430043,0.0166,95048.0,95046.0,0.21042406]
[1746470430246,0.55046573,95049.0,95047.0,0.21042175]
[1746470430448,0.003,95048.0,95047.0,0.21042221]
[1746470430670,0.5669703,95049.0,95045.0,0.22094383]
[1746470431080,0.0162,95048.0,95047.0,0.21042221]
[1746470431284,0.01950461,95049.0,95048.0,0.20141999]
[1746470431854,0.01650461,95049.0,95048.0,0.21124051]
[1746470432232,0.01850461,95049.0,95048.0,0.21124051]
[1746470432449,0.01850461,95049.0,95048.0,0.24304051]
[1746470432655,0.01650461,95049.0,95048.0,0.24304051]
[1746470432862,0.6973,95074.0,95073.0,0.21036466]
[1746470433064,0.72744106,95078.0,95073.0,0.20736466]
[1746470433271,0.01051779,95077.0,95074.0,0.21036119]
[1746470433484,0.34,95077.0,95075.0,0.21035966]
[1746470433784,0.35650027,95077.0,95076.0,0.21035802]
[1746470434123,0.35695206,95077.0,95076.0,0.22005417]
[1746470435771,0.36481268,95077.0,95076.0,0.22005417]
[1746470436882,0.36481268,95077.0,95076.0,0.22205417]
[1746470438713,0.55866822,95077.0,95076.0,0.01169615]
[1746470438896,0.34831241,95077.0,95076.0,0.01169615]
[1746470439110,0.55866822,95077.0,95076.0,0.00469615]
[1746470439413,0.36799534,95077.0,95076.0,0.01034601]
[1746470439605,0.36799534,95077.0,95076.0,0.002]
[1746470439815,0.36799534,95077.0,95076.0,0.01034601]
[1746470440111,0.36799534,95077.0,95076.0,0.22070403]
[1746470440676,0.34831241,95077.0,95076.0,0.22070403]
[1746470441536,0.36481194,95077.0,95076.0,0.22070403]
[1746470446077,0.36481194,95077.0,95076.0,0.21370403]
[1746470446370,0.36481194,95077.0,95076.0,0.21787069]
[1746470446731,0.34831241,95077.0,95076.0,0.21787069]
[1746470450928,0.36481178,95077.0,95076.0,0.21787069]
[1746470453273,0.36481178,95077.0,95076.0,0.21365501]
[1746470455831,0.36481178,95077.0,95076.0,0.00695098]
[1746470456032,0.36481178,95077.0,95076.0,0.217309]
[1746470456290,0.36481178,95077.0,95076.0,0.21035802]
[1746470456489,0.36481178,95077.0,95076.0,0.21718845]
[1746470457397,0.38450089,95077.0,95076.0,0.21718845]
[1746470459464,0.36800152,95077.0,95076.0,0.21718845]
[1746470459607,0.34831241,95077.0,95076.0,0.21718845]
[1746470460187,0.34831241,95077.0,95076.0,0.21018845]
[1746470462185,0.36481151,95077.0,95076.0,0.21018845]
[1746470462392,0.38455243,95077.0,95076.0,0.21018845]
[1746470467359,0.38455243,95077.0,95076.0,0.20318845]
[1746470470010,0.36805333,95077.0,95076.0,0.20318845]
[1746470472964,0.38455253,95077.0,95076.0,0.20318845]
[1746470474531,0.38455253,95077.0,95076.0,0.19618845]
[1746470474828,0.62580834,95077.0,95076.0,0.00683043]
[1746470474971,0.210373,95070.0,95067.0,0.01051889]
[1746470475167,0.22089683,95067.0,95064.0,0.21038326]
[1746470475380,0.01052022,95055.0,95045.0,0.0154]
[1746470475607,0.01052044,95053.0,95049.0,0.01052088]
[1746470475804,0.21041362,95051.0,95046.0,0.01052122]
[1746470476003,0.01052044,95053.0,95051.0,0.21041335]
[1746470476206,0.01974092,95054.0,95049.0,0.01052088]
[1746470476426,0.01974092,95054.0,95053.0,0.21040892]
[1746470476629,0.0197455,95054.0,95053.0,0.01052044]
[1746470476802,0.0197455,95054.0,95053.0,0.22092936]
[1746470478057,0.0197455,95054.0,95053.0,0.22192936]
[1746470478285,0.0197455,95054.0,95053.0,0.001]
[1746470478835,0.0197455,95054.0,95053.0,0.002]
[1746470479076,0.58665467,95054.0,95053.0,0.002]
[1746470479275,0.60315467,95054.0,95053.0,0.002]
[1746470479588,0.39274796,95054.0,95053.0,0.002]
[1746470480674,0.37624796,95054.0,95053.0,0.00894216]
[1746470482524,0.58665467,95054.0,95053.0,0.00894216]
[1746470482947,0.37624796,95054.0,95053.0,0.00894216]
[1746470483108,0.37624796,95054.0,95053.0,0.002]
[1746470483310,0.37624796,95054.0,95053.0,0.00894216]
[1746470483535,0.22560007,95057.0,95053.0,0.00894216]
[1746470483739,0.01650288,95054.0,95053.0,0.00894216]
[1746470484147,0.01650288,95054.0,95053.0,0.21935108]
[1746470484527,0.01650288,95054.0,95053.0,0.21835108]
[1746470485371,0.01650288,95054.0,95053.0,0.21935108]
[1746470485708,0.01650288,95054.0,95053.0,0.21835108]
[1746470486149,0.01650288,95054.0,95053.0,0.21935108]
[1746470486910,0.0156,95059.0,95058.0,0.21039742]
[1746470487267,0.0156,95059.0,95058.0,0.21744434]
[1746470487813,0.3556,95059.0,95058.0,0.21744434]
[1746470488230,0.8556,95059.0,95058.0,0.21744434]
[1746470490467,0.84,95059.0,95058.0,0.21744434]
[1746470491212,0.85650238,95059.0,95058.0,0.21744434]
[1746470491871,0.85650238,95059.0,95058.0,0.00704692]
[1746470492074,0.85650238,95059.0,95058.0,0.21744478]
[1746470492249,0.85650238,95059.0,95058.0,0.21039786]
[1746470492487,0.85650238,95059.0,95058.0,0.21744478]
[1746470492661,0.85650238,95059.0,95058.0,4.692e-05]
[1746470492865,0.85650238,95059.0,95058.0,0.21627811]
[1746470493534,0.85650238,95059.0,95058.0,0.00588025]
[1746470495126,0.85650238,95059.0,95058.0,0.21627811]
[1746470495817,0.87620234,95059.0,95058.0,0.21627811]
[1746470496022,0.86568234,95059.0,95058.0,0.21627811]
[1746470496433,0.84917996,95059.0,95058.0,0.21627811]
[1746470498282,1.0595756,95059.0,95058.0,0.00588025]
[1746470498657,1.0595756,95059.0,95056.0,0.01052011]
[1746470499033,0.21039827,95058.0,95056.0,0.22092177]
[1746470499242,0.74061538,95059.0,95056.0,0.22092177]
[1746470499463,0.01969996,95057.0,95056.0,0.22092177]
[1746470500239,0.01969996,95057.0,95056.0,0.22679637]
[1746470500653,0.85969996,95057.0,95056.0,0.22679637]
[1746470500982,0.85969996,95057.0,95056.0,0.22092177]
[1746470501332,0.85969996,95057.0,95056.0,0.22779637]
[1746470504581,0.85969996,95057.0,95056.0,0.0068746]
[1746470504582,1.07010003,95057.0,95056.0,0.0068746]
[1746470504810,0.21044435,95037.0,95033.0,0.0151]
[1746470504985,0.01052166,95042.0,95036.0,0.02622232]
[1746470505190,0.22095494,95042.0,95038.0,0.2209637]
[1746470505368,0.01052199,95039.0,95028.0,0.0166]
[1746470505713,0.21045144,95034.0,95031.0,0.21045736]
[1746470506054,0.01976501,95033.0,95031.0,0.0001357]
[1746470506255,0.22096581,95038.0,95034.0,0.21044889]
[1746470506455,0.2104451,95037.0,95034.0,0.21044889]
[1746470506664,0.22096581,95038.0,95035.0,0.21044824]
[1746470506878,0.03364563,95039.0,95035.0,0.22097067]
[1746470507102,0.03364563,95039.0,95035.0,0.21044824]
[1746470507103,0.21044521,95037.0,95035.0,0.21044824]
[1746470507442,0.01052221,95037.0,95034.0,0.01052254]
[1746470507999,0.22096742,95037.0,95034.0,0.22097175]
[1746470508269,0.22096436,95038.0,95035.0,0.21044797]
[1746470508590,0.03364563,95039.0,95036.0,0.21044592]
[1746470508837,0.03364563,95039.0,95037.0,0.21044421]
[1746470509483,0.03364563,95039.0,95036.0,0.22096824]
[1746470509718,0.21045542,95032.0,95029.0,0.0105231]
[1746470509914,0.21045542,95032.0,95029.0,0.22098437]
[1746470510115,0.21044435,95037.0,95033.0,0.21045188]
[1746470510271,0.72096582,95038.0,95034.0,0.01052254]
[1746470510476,0.72096582,95038.0,95035.0,0.22097121]
[1746470510643,0.5,95038.0,95036.0,0.21044567]
[1746470511560,0.5,95038.0,95037.0,0.21044435]
[1746470511970,0.5,95038.0,95037.0,0.20344435]
[1746470513319,0.5105221,95038.0,95035.0,0.22097121]
[1746470514265,0.21044435,95037.0,95035.0,0.22097121]
[1746470514866,0.5105221,95038.0,95036.0,0.21044656]
[1746470515272,0.0105221,95038.0,95036.0,0.21044656]
[1746470515471,0.2209657,95038.0,95035.0,0.22097121]
[1746470515631,0.5,95036.0,95035.0,0.22197121]
[1746470516882,0.5,95036.0,95035.0,0.22097121]
[1746470517452,0.5,95036.0,95035.0,0.22197121]
[1746470517637,0.5,95036.0,95035.0,0.001]
[1746470517840,0.5,95036.0,95035.0,0.002]
[1746470518440,0.5,95036.0,95035.0,0.21244878]
[1746470519004,0.5,95036.0,95035.0,0.20544878]
[1746470519445,0.5,95036.0,95034.0,0.22097315]
[1746470519792,0.51650354,95036.0,95035.0,0.21044878]
[1746470520736,0.53623984,95036.0,95035.0,0.21044878]
[1746470521553,0.53623984,95036.0,95035.0,0.002]
[1746470521832,0.53623984,95036.0,95035.0,0.21244878]
[1746470524761,0.53483981,95036.0,95035.0,0.21244878]
[1746470526152,0.53483981,95036.0,95035.0,0.20544878]
[1746470528161,0.51833627,95036.0,95035.0,0.20544878]
[1746470531186,0.53483967,95036.0,95035.0,0.20544878]
[1746470533163,0.53483967,95036.0,95035.0,0.19844878]
[1746470533725,0.53483967,95036.0,95035.0,0.20450303]
[1746470534996,0.53483967,95036.0,95035.0,0.23580303]
[1746470535205,0.53483967,95036.0,95035.0,0.32070844]
[1746470535399,0.6973,95072.0,95071.0,0.21036909]
[1746470535601,0.6973,95080.0,95079.0,0.21035139]
[1746470535723,1.0373,95080.0,95079.0,0.21035139]
[1746470536350,0.6973,95080.0,95079.0,0.21035139]
[1746470536564,1.5373,95080.0,95079.0,0.20935139]
[1746470536773,1.53775179,95080.0,95079.0,0.20935139]
[1746470537170,1.55996497,95080.0,95079.0,0.20935139]
[1746470537748,1.56799974,95080.0,95079.0,0.20935139]
[1746470538143,1.56999974,95080.0,95079.0,0.20935139]
[1746470538746,1.58649762,95080.0,95079.0,0.20935139]
[1746470540254,1.58649762,95080.0,95079.0,0.20235139]
[1746470540814,0.34,95079.0,95077.0,0.22087143]
[1746470541167,0.34,95079.0,95078.0,0.2103536]
[1746470542001,0.342,95079.0,95078.0,0.2103536]
[1746470542402,0.34,95079.0,95077.0,0.22087326]
[1746470542601,0.842,95079.0,95077.0,0.22087326]
[1746470543506,0.84,95079.0,95077.0,0.22087326]
[1746470543805,0.842,95079.0,95077.0,0.22087326]
[1746470544084,0.84,95079.0,95077.0,0.22087326]
[1746470544262,0.84,95079.0,95078.0,0.2103536]
[1746470544429,0.842,95079.0,95078.0,0.2103536]
[1746470544640,0.844,95079.0,95078.0,0.2103536]
[1746470544909,0.844,95079.0,95077.0,0.22087326]
[1746470545036,0.84,95079.0,95077.0,0.22087326]
[1746470545236,0.842,95079.0,95077.0,0.22087326]
[1746470545436,0.844,95079.0,95077.0,0.22087326]
[1746470545894,0.842,95079.0,95077.0,0.22087326]
[1746470546094,0.844,95079.0,95077.0,0.22087326]
[1746470546260,0.22087343,95078.0,95074.0,0.22087987]
[1746470546643,0.22087343,95078.0,95064.0,0.21038378]
[1746470546644,0.01051945,95062.0,95057.0,0.01052]
[1746470546855,0.22090326,95065.0,95061.0,0.22091078]
[1746470547072,0.22089811,95067.0,95063.0,0.01051933]